[Event "Gibraltar Challengers B 2020"]
[Site "Caleta"]
[Date "2020.01.25"]
[Round "1.31"]
[White "Schouten, Freek"]
[Black "Garcia-Blazquez Perez, Manuel"]
[Result "1-0"]
[ECO "A80"]
[WhiteElo "2084"]
[BlackElo "1825"]
[Annotator "NA RC"]
[PlyCount "133"]
[EventDate "2020.01.20"]
[EventType "swiss"]
[EventCountry "GGB"]
[SourceTitle "playchess.com"]
[Source "ChessBase"]
[SourceQuality "1"]
[TimeControl "6600+10"]

1. d4 {[%emt 0:00:00]} f5 {[%emt 0:00:00]} 2. Bg5 {[%emt 0:00:02]} h6 {[%emt 0:00:01]} 3. Bf4 {[%emt 0:03:22]} Nf6 {[%emt 0:00:19]} 4. e3 {[%emt 0:00:18]} d6 {[%emt 0:00:29]} 5. c4 {[%emt 0:02:34]} (5. h3 g5 6. Bh2 e6 7. c4 Bg7 8. Nc3 O-O 9. Qc2 Nc6 10. Nf3 Qe8 11. d5 Nb4 12. Qb3 {1-0 (46) Kazakovskiy,V (2485)-Piorun,K (2611) Moscow 2019}) 5... g5 {[%emt 0:00:05]} 6. Bg3 {[%emt 0:00:05] A80: Dutch Defence: Unusual White second moves} Bg7 {[%emt 0:00:03]} 7. h4 {[%emt 0:00:47]} e6 $146 {[%emt 0:04:23]} ({Better is} 7... c5 $11) ({Predecessor:} 7... g4 8. Nc3 Nc6 9. d5 Ne5 10. Qa4+ Bd7 11. Qb3 Qc8 12. O-O-O c5 13. Nge2 Ne4 14. Nxe4 fxe4 {1-0 (39) Gitsis,H (2044)-Efentakis,N (1791) Athens 2010}) 8. hxg5 {[%emt 0:02:55]} hxg5 {[%emt 0:00:02]} 9. Rxh8+ {[%emt 0:00:08]} Bxh8 {[%emt 0:00:08]} 10. Nc3 {[%emt 0:00:22]} Nc6 {[%emt 0:00:24]} (10... Bg7 $14) 11. Nh3 {[%emt 0:06:30]} g4 {[%emt 0:00:05] [#]} 12. Nf4 $1 {[%emt 0:00:46]} Qe7 {[%emt 0:00:18]} 13. Qd2 {[%emt 0:01:46]} (13. Qb3 $16) 13... Bd7 {[%emt 0:00:08]} 14. d5 {[%emt 0:07:38]} Ne5 {[%emt 0:04:30]} 15. O-O-O {[%emt 0:01:56]} O-O-O {[%emt 0:00:14]} 16. Kb1 {[%emt 0:03:38]} Nf7 {[%emt 0:04:32]} 17. dxe6 {[%emt 0:08:22]} Bxe6 {[%emt 0:00:09]} 18. Bh4 {[%emt 0:04:54]} Ne5 {[%emt 0:19:30]} 19. Ncd5 {[%emt 0:00:40]} Bxd5 $1 {[%emt 0:00:06]} 20. cxd5 {[%emt 0:01:38]} Qh7 {[%emt 0:02:04]} ({Better is} 20... Kb8) 21. Bxf6 {[%emt 0:05:34]} Bxf6 {[%emt 0:00:09]} 22. Ne6 {[%emt 0:00:20]} f4+ {[%emt 0:09:42]} 23. Qc2 {[%emt 0:03:35]} Qxc2+ {[%emt 0:05:14]} 24. Kxc2 {[%emt 0:00:01]} Rh8 {[%emt 0:00:11]} 25. exf4 {[%emt 0:07:24]} Nf7 {[%emt 0:05:27]} 26. b3 {[%emt 0:14:27]} Rh2 {[%emt 0:00:08]} 27. Kd3 {[%emt 0:01:00]} Bh4 {[%emt 0:13:50]} 28. g3 {[%emt 0:03:04]} Bf6 {[%emt 0:00:05]} 29. Rd2 {[%emt 0:01:20]} (29. Be2 $18) 29... Nh6 {[%emt 0:04:26]} 30. Ke4 {[%emt 0:02:01]} Kd7 {[%emt 0:00:53]} 31. Nd4 {[%emt 0:08:29]} c6 {[%emt 0:01:34]} 32. Bc4 {[%emt 0:01:18]} Bxd4 {[%emt 0:13:24]} 33. Kxd4 {[%emt 0:00:08]} Nf5+ {[%emt 0:00:05]} 34. Kc3 {[%emt 0:00:17]} c5 {[%emt 0:00:22]} 35. Be2 {[%emt 0:00:57]} Nh6 {[%emt 0:01:32]} 36. Bd1 {[%emt 0:00:23]} b5 {[%emt 0:00:34]} 37. Kd3 {[%emt 0:03:22]} Rh1 {[%emt 0:01:05]} 38. a4 {[%emt 0:00:24]} a6 {[%emt 0:00:36]} 39. axb5 {[%emt 0:01:08]} axb5 {[%emt 0:00:01] [#]} 40. Kc2 {[%emt 0:00:52]} ({Better is} 40. Be2 $1 $18) 40... Rh5 {[%emt 0:02:01]} 41. Be2 {[%emt 0:00:37]} b4 {[%emt 0:00:07]} 42. Bd3 {[%emt 0:01:02]} ({White should play} 42. Rd1 $14) 42... Kc7 {[%emt 0:02:57]} 43. Bg6 {[%emt 0:00:07]} Rh2 {[%emt 0:00:18]} 44. Re2 {[%emt 0:00:16]} Kb6 {[%emt 0:01:32]} 45. Kd3 {[%emt 0:00:17]} Ng8 {[%emt 0:00:45]} 46. Re6 {[%emt 0:01:35]} Rxf2 {[%emt 0:02:20]} 47. Bf7 $18 {[%emt 0:00:33]} (47. Rxd6+ $142 Kc7 48. Rc6+ {[%mdl 64] Double Attack} Kb7 49. Be4) 47... Rf3+ {[%emt 0:00:17]} 48. Kc2 {[%emt 0:01:01]} Ne7 {[%emt 0:01:36]} 49. Rxe7 {[%emt 0:00:16]} Rxg3 {[%emt 0:00:31]} 50. Rd7 {[%emt 0:00:44]} Rg2+ {[%emt 0:05:04]} 51. Kc1 {[%emt 0:00:02]} Rg1+ {[%emt 0:00:08]} 52. Kd2 {[%emt 0:00:09]} Rg2+ {[%emt 0:00:14]} 53. Ke1 {[%emt 0:00:18]} Rb2 {[%emt 0:00:05]} 54. Rxd6+ {[%emt 0:00:07]} Kb7 {[%emt 0:00:25]} 55. Rc6 {[%emt 0:02:04]} g3 {[%emt 0:00:06]} 56. Kf1 {[%emt 0:01:55]} Rxb3 {[%emt 0:00:03]} 57. Rxc5 {[%emt 0:00:53]} Rf3+ {[%emt 0:00:02]} 58. Kg2 {[%emt 0:00:01]} Rxf4 {[%emt 0:00:02]} 59. Be6 {[%emt 0:00:20]} Kb6 {[%emt 0:01:06]} 60. Rc8 {[%emt 0:00:10]} Kb5 {[%emt 0:00:28]} 61. Kxg3 {[%emt 0:00:04]} Rf6 {[%emt 0:00:25]} 62. Kg4 {[%emt 0:00:10]} b3 {[%emt 0:00:09]} 63. Kg5 {[%emt 0:00:07]} Rf1 {[%emt 0:00:21]} 64. d6 {[%emt 0:01:00]} b2 {[%emt 0:00:13]} 65. d7 {[%emt 0:00:39]} Rd1 {[%emt 0:00:39]} 66. d8=Q {[%emt 0:00:13]} Rxd8 {[%emt 0:00:10]} 67. Rxd8 {[%emt 0:00:02]} 1-0

[Event "Gibraltar Challengers B 2020"]
[Site "Caleta"]
[Date "2020.01.25"]
[Round "1.32"]
[White "Olufemi, George"]
[Black "Stolniceanu, Victor-Dumitru"]
[Result "0-1"]
[ECO "C44"]
[WhiteElo "1803"]
[BlackElo "2074"]
[Annotator "NA RC"]
[PlyCount "98"]
[EventDate "2020.01.20"]
[EventType "swiss"]
[EventCountry "GGB"]
[SourceTitle "playchess.com"]
[Source "ChessBase"]
[SourceQuality "1"]
[TimeControl "6600+10"]

{[%evp 12,96,22,32767,32767,-76,-70,32767,32767,32767,32767,32767,32767,32767,-204,32767,32767,-143,-152,32767,32767,-161,32767,32767,32767,-97,-100,-112,32767,32767,32767,-163,32767,-197,-150,-142,-142,-144,32767,-160,32767,32767,32767,-189,-163,-155,25,-125,51,39,50,32767,32767,34,42,0,0,-47,-43,-34,0,-8,37,32767,28,0,356,32767,32767,401,32767,32767,214,154,140,32767,32767,32767,32767,32767,32767,-438,-176,-577,32767,32767,-911]} 1. e4 {[%emt 0:00:03]} e5 {[%emt 0:00:00]} 2. Nf3 {[%emt 0:00:22]} Nc6 {[%emt 0:00:08]} 3. d4 {[%emt 0:00:10]} exd4 {[%emt 0:04:23]} 4. Bc4 {[%emt 0:00:37]} Bb4+ {[%emt 0:00:30]} 5. c3 {[%emt 0:00:51]} dxc3 {[%emt 0:00:07]} 6. O-O {[%emt 0:00:13]} d6 {[%emt 0:00:23]} 7. bxc3 {[%emt 0:02:06] C44: Ponziani Opening and Scotch Gambit} Bc5 {[%emt 0:00:08]} 8. Nbd2 {[%emt 0:16:38]} (8. Qb3 Qe7 9. Bg5 Nf6 10. e5 dxe5 11. Nbd2 O-O 12. Ne4 Bb6 13. Qb1 Bf5 14. Nfd2 h6 15. Bxf6 gxf6 {0-1 (33) Rodi,L (2314)-Limp,E (2359) Rio de Janeiro 2018}) 8... Nf6 {[%emt 0:00:47]} 9. Nb3 {[%emt 0:03:03]} Bb6 {[%emt 0:00:28]} 10. a4 {[%emt 0:00:56]} a5 {[%emt 0:01:06]} 11. Ba3 $146 {[%emt 0:04:37]} ({Predecessor:} 11. Nbd4 Ne5 12. Nxe5 dxe5 13. Bb5+ Bd7 14. Nf5 Bxb5 15. Nxg7+ Kf8 16. Bh6 Qxd1 17. Nf5+ Ke8 18. Ng7+ Ke7 19. Nf5+ Ke6 20. Ng7+ Kd7 21. axb5 {½-½ (21) Ospina Ocampo,C (1918)-Roa Ribera,A (1688) Badalona 2017}) 11... Bg4 {[%emt 0:00:21]} 12. Qc2 {[%emt 0:02:38] [#]} Bxf3 $1 {[%emt 0:01:41]} 13. gxf3 {[%emt 0:00:05]} Ne5 {[%emt 0:00:26]} 14. Be2 {[%emt 0:01:37]} Nh5 {[%emt 0:00:10]} 15. Nd4 {[%emt 0:01:51]} Nf4 {[%emt 0:00:45]} 16. Kh1 {[%emt 0:00:16]} Qh4 {[%emt 0:00:35]} 17. Rg1 {[%emt 0:00:12]} O-O {[%emt 0:00:40]} 18. Rg3 {[%emt 0:01:32]} g6 {[%emt 0:00:36]} 19. Qd2 {[%emt 0:11:33]} Kh8 {[%emt 0:02:10]} 20. Rb1 {[%emt 0:04:23]} Rad8 {[%emt 0:00:19]} 21. Bb2 {[%emt 0:02:35]} (21. Bc1 $17 g5 22. Qa2) 21... Nh5 {[%emt 0:00:28]} 22. Kg2 {[%emt 0:07:30]} Nxg3 {[%emt 0:01:56]} 23. hxg3 {[%emt 0:00:18] [#]} Qe7 $1 {[%emt 0:00:34]} 24. Rh1 {[%emt 0:01:24]} Rg8 {[%emt 0:04:31]} 25. Qh6 {[%emt 0:04:15]} Rg7 {[%emt 0:00:38]} 26. c4 {[%emt 0:01:23]} f6 {[%emt 0:00:22]} 27. Qd2 {[%emt 0:07:57]} Qd7 {[%emt 0:00:52]} 28. f4 {[%emt 0:02:14]} Nf7 $2 {[%emt 0:00:18]} ({Black should play} 28... Qe7 $19 29. f3 Nd7) 29. Rh4 $2 {[%emt 0:02:47] [#]} (29. Qc3 $11) 29... Rf8 $2 {[%emt 0:00:23]} (29... Qe7 $1 $17 30. Nf3 Rf8) 30. Bg4 {[%emt 0:01:22]} Qe7 $1 {[%emt 0:03:05]} ({Avoid the trap} 30... Qxa4 $2 31. Ne6 $18 {[%mdl 64] Double Attack}) 31. Ne6 {[%emt 0:03:45]} Nd8 {[%emt 0:00:12]} 32. Nxg7 {[%emt 0:03:15]} ({White must play} 32. Nxf8 $16 Qxf8 33. f5) 32... Kxg7 {[%emt 0:00:14]} 33. f5 {[%emt 0:01:10]} (33. Bf3 $5 {[%cal Re4e5]}) 33... Nf7 $1 {[%emt 0:01:03]} 34. Bf3 {[%emt 0:05:00]} g5 {[%emt 0:00:17]} 35. Rh1 {[%emt 0:02:39]} h6 {[%emt 0:00:24]} 36. Re1 {[%emt 0:00:23]} Qd7 {[%emt 0:00:12]} 37. Bd1 {[%emt 0:00:38]} Qc6 {[%emt 0:00:19]} 38. Qe2 {[%emt 0:03:27]} Re8 $2 {[%emt 0:00:15]} (38... Qc5 $11) 39. Qh5 {[%emt 0:00:35]} Nh8 {[%emt 0:04:08]} 40. Bxf6+ {[%emt 0:01:34]} (40. Rh1 $142 Qxe4+ 41. f3 Qxf5 42. Qxe8) 40... Kxf6 {[%emt 0:00:23]} 41. Qxh6+ {[%emt 0:00:03]} Ke7 {[%emt 0:01:24]} 42. f6+ {[%emt 0:02:27]} Kd8 {[%emt 0:00:16]} 43. f7 {[%emt 0:00:27]} Nxf7 {[%emt 0:00:34]} 44. Qf6+ {[%emt 0:00:21]} Re7 {[%emt 0:00:34]} 45. Bh5 {[%emt 0:01:00]} Qxc4 {[%emt 0:00:14]} 46. e5 {[%emt 0:01:37]} Qe6 $2 {[%emt 0:00:02]} (46... dxe5 47. Qf5 Bd4) 47. Qf3 $2 {[%emt 0:01:24]} (47. Qxe6 Rxe6 48. Bxf7 Rxe5 49. Rxe5 dxe5 50. Bg6) 47... Nxe5 {[%emt 0:00:58]} 48. Qxb7 {[%emt 0:00:09]} g4 $19 {[%emt 0:01:04]} 49. Rc1 {[%emt 0:01:26]} Qf5 {[%emt 0:00:29]} 0-1

[Event "Gibraltar Challengers B 2020"]
[Site "Caleta"]
[Date "2020.01.25"]
[Round "1.33"]
[White "Hamer, Martyn"]
[Black "Kunnavakkam, Sudarshanagopal Vin"]
[Result "1-0"]
[ECO "A43"]
[WhiteElo "2069"]
[BlackElo "1786"]
[Annotator "NA RC"]
[PlyCount "135"]
[EventDate "2020.01.20"]
[EventType "swiss"]
[EventCountry "GGB"]
[SourceTitle "playchess.com"]
[Source "ChessBase"]
[SourceQuality "1"]
[TimeControl "6600+10"]

1. d4 {[%emt 0:28:48]} c5 {[%emt 0:01:31]} 2. d5 {[%emt 0:00:08]} e6 {[%emt 0:00:55]} 3. e4 {[%emt 0:00:23]} d6 {[%emt 0:00:14]} 4. Nc3 {[%emt 0:00:48]} Nf6 {[%emt 0:00:47]} 5. Nf3 {[%emt 0:01:49]} g6 {[%emt 0:02:50]} (5... exd5 6. exd5 Be7 7. h3 O-O 8. Bc4 Na6 9. O-O Nc7 10. Bf4 a6 11. a4 b6 12. Re1 Re8 13. g4 Rb8 14. Bh2 b5 15. axb5 axb5 {0-1 (59) Swayams,M (2479)-Wadsworth,M (2401) Hastings 2020}) 6. Bg5 {[%emt 0:02:30] A43: Schmid Benoni} Bg7 {[%emt 0:00:50]} (6... e5 $16) 7. Bb5+ {[%emt 0:04:09]} Kf8 {[%emt 0:02:07] [#]} 8. a4 $2 $146 {[%emt 0:02:19]} ({White has to play} 8. dxe6 $1 $18 h6 9. Bh4) ({Predecessor:} 8. O-O h6 9. Be3 e5 10. a4 Nh5 11. Nd2 Nf4 12. Bxf4 exf4 13. Qf3 {0-1 (28) Colter,N (1731)-Watson,D (1775) High Wycombe 2013}) 8... h6 {[%emt 0:04:45]} 9. Bh4 {[%emt 0:01:49]} a6 {[%emt 0:09:35]} 10. Be2 {[%emt 0:01:28]} e5 {[%emt 0:04:18]} (10... exd5 $14 11. exd5 g5) 11. Nd2 {[%emt 0:02:55]} Kg8 {[%emt 0:01:41]} 12. Nc4 {[%emt 0:01:31]} b6 {[%emt 0:02:16]} 13. Bg3 {[%emt 0:02:52]} (13. Qd2 $142) 13... Kh7 {[%emt 0:02:11]} 14. f4 {[%emt 0:02:20]} exf4 {[%emt 0:02:53]} 15. Bxf4 {[%emt 0:01:41]} Ne8 {[%emt 0:04:37]} 16. O-O {[%emt 0:02:40]} Ra7 {[%emt 0:02:05]} 17. e5 {[%emt 0:12:20]} (17. Ra3 $16) 17... dxe5 {[%emt 0:11:37]} 18. Nxe5 {[%emt 0:00:37]} Nd6 {[%emt 0:01:41]} 19. Nc6 {[%emt 0:04:50]} Nxc6 {[%emt 0:01:34]} 20. dxc6 {[%emt 0:00:07]} Bd4+ {[%emt 0:06:06]} 21. Kh1 {[%emt 0:00:36]} Bf5 {[%emt 0:03:31]} 22. Bf3 {[%emt 0:05:30]} Nc4 {[%emt 0:07:05]} (22... Be6 $16 {keeps fighting.}) 23. Nd5 {[%emt 0:07:11]} Nxb2 {[%emt 0:05:33]} 24. Qc1 {[%emt 0:06:25]} Be6 {[%emt 0:01:14]} 25. c7 {[%emt 0:01:58]} Qf8 {[%emt 0:03:30]} 26. Nxb6 {[%emt 0:02:05]} Qg7 {[%emt 0:01:19]} 27. Re1 {[%emt 0:05:24]} (27. Bd5 $18) 27... Nc4 {[%emt 0:08:20]} 28. Rxe6 {[%emt 0:10:17]} fxe6 {[%emt 0:00:36]} 29. c8=Q {[%emt 0:02:01]} Rxc8 {[%emt 0:00:13]} 30. Nxc8 {[%emt 0:00:05]} Rf7 {[%emt 0:00:06]} 31. Rb1 {[%emt 0:01:47]} Bb2 {[%emt 0:00:11]} 32. Rxb2 {[%emt 0:02:42]} Qxb2 {[%emt 0:01:15]} 33. Qxb2 {[%emt 0:03:22]} Nxb2 {[%emt 0:00:12]} 34. Be5 {[%emt 0:00:39]} Nc4 {[%emt 0:02:12]} 35. Bg3 {[%emt 0:02:21]} Nd2 {[%emt 0:07:03]} 36. Nd6 {[%emt 0:02:25]} Rf8 {[%emt 0:00:08]} 37. Be2 {[%emt 0:00:58]} Rb8 {[%emt 0:00:27]} 38. Kg1 {[%emt 0:00:43]} Rb4 {[%emt 0:01:34]} 39. Bxa6 {[%emt 0:03:34]} Rxa4 {[%emt 0:00:50]} 40. Bb5 {[%emt 0:00:09]} ({White should play} 40. Be2 $16) 40... Rb4 $16 {[%emt 0:00:59]} (40... Ra1+ $1 $14 41. Kf2 Ra2) 41. Bd7 {[%emt 0:02:41]} Ne4 {[%emt 0:00:55]} 42. Nxe4 {[%emt 0:00:07]} Rxe4 {[%emt 0:00:10]} 43. Kf2 {[%emt 0:00:35]} Rc4 {[%emt 0:00:55]} 44. Bxe6 {[%emt 0:00:07]} Rxc2+ 45. Kf3 {[%emt 0:00:10]} c4 {[%emt 0:00:11]} 46. Bd5 {[%emt 0:01:15]} Rc1 {[%emt 0:00:44]} 47. Ke3 {[%emt 0:00:32]} c3 {[%emt 0:00:20]} 48. Bf3 {[%emt 0:00:22]} Rb1 {[%emt 0:00:41]} 49. Kd3 {[%emt 0:00:06]} Rb3 {[%emt 0:00:10]} 50. Be5 {[%emt 0:00:21]} Rb6 {[%emt 0:00:20]} 51. Kxc3 {[%emt 0:00:13]} Re6 {[%emt 0:00:03]} 52. Kd4 {[%emt 0:00:04]} Ra6 {[%emt 0:00:09]} 53. Kd5 {[%emt 0:00:09]} Ra5+ 54. Ke6 {[%emt 0:00:08]} Ra6+ {[%emt 0:00:01]} 55. Bd6 {[%emt 0:00:09]} Kg7 {[%emt 0:00:01]} 56. Bd5 {[%emt 0:00:27]} Rb6 {[%emt 0:00:13]} 57. Ke7 {[%emt 0:00:08]} Rb5 {[%emt 0:00:35]} 58. Bc6 {[%emt 0:00:33]} Rf5 {[%emt 0:00:09]} 59. g4 {[%emt 0:00:24]} Rf2 {[%emt 0:00:12]} 60. Be5+ {[%emt 0:00:12]} Kh7 {[%emt 0:00:16]} 61. h4 {[%emt 0:00:10]} h5 {[%emt 0:00:10]} 62. g5 {[%emt 0:00:25]} Re2 {[%emt 0:00:10]} 63. Ke6 {[%emt 0:00:13]} Re3 {[%emt 0:00:06]} 64. Bg2 {[%emt 0:00:31]} Re2 {[%emt 0:00:01]} 65. Bf1 {[%emt 0:00:27]} Re4 {[%emt 0:00:08]} 66. Bd3 {[%emt 0:00:17]} Re3 {[%emt 0:00:09]} 67. Bc2 {[%emt 0:00:16]} Rh3 {[%emt 0:00:07]} 68. Kf7 {[%emt 0:00:07]} 1-0

[Event "Gibraltar Challengers B 2020"]
[Site "Caleta"]
[Date "2020.01.25"]
[Round "1.34"]
[White "Tkadlecek, Petr"]
[Black "Ungureanu, Sandu"]
[Result "0-1"]
[ECO "D02"]
[WhiteElo "1775"]
[BlackElo "2066"]
[Annotator "NA RC"]
[PlyCount "118"]
[EventDate "2020.01.20"]
[EventType "swiss"]
[EventCountry "GGB"]
[SourceTitle "playchess.com"]
[Source "ChessBase"]
[SourceQuality "1"]
[TimeControl "6600+10"]

{[%evp 12,112,9,32767,32767,-3,32767,32767,32767,32767,32767,32767,8,32767,32767,32767,32767,0,0,-9,-3,-38,-39,-50,32767,32767,32767,-52,32767,32767,32767,-67,-67,32767,-68,-73,-53,-40,-54,-37,32767,-20,32767,-51,32767,32767,-52,-39,32767,32767,-33,32767,-49,32767,-55,32767,-62,-67,32767,-90,-22,-120,-105,-118,-64,32767,-62,-211,-242,32767,32767,-218,-225,32767,-70,-69,-42,32767,32767,-14,0,-89,0,0,13,8,32767,0,67,32767,32767,32767,32767,32767,32767,32767,32767,-29981,-29981,32767,32767,-29995,-29994]} 1. d4 {[%emt 0:00:00]} c6 {[%emt 0:00:01]} 2. Nf3 {[%emt 0:00:01]} d5 {[%emt 0:00:08]} 3. Bf4 {[%emt 0:00:06]} Nf6 {[%emt 0:00:08]} 4. e3 {[%emt 0:02:52]} Bg4 {[%emt 0:00:20]} 5. Be2 {[%emt 0:00:45]} e6 {[%emt 0:00:20]} 6. h3 {[%emt 0:00:19] D02: 1 d4 d5 2 Nf3 sidelines, including 2...Nf6 3 g3 and 2...Nf6 3 Bf4} (6. Nbd2 Nbd7 7. h3 Bh5 8. O-O Be7 9. c4 O-O 10. Ne5 Bxe2 11. Qxe2 Nxe5 12. Bxe5 Bd6 13. Bxd6 Qxd6 14. Rfd1 Rfd8 15. Rac1 h6 16. Qd3 Qe7 17. a3 {½-½ (17) Mitkov,N (2565)-Ehlvest,J (2597) Santo Domingo 2006}) 6... Bxf3 {[%emt 0:00:06]} 7. Bxf3 {[%emt 0:00:40]} Bd6 {[%emt 0:00:13]} 8. Bg5 {[%emt 0:00:57]} Nbd7 {[%emt 0:00:15]} 9. c3 $146 {[%emt 0:00:23]} ({Predecessor:} 9. Nd2 h6 10. Bxf6 Nxf6 11. O-O Qc7 12. c4 {0-1 (87) Stiemerling,K-Fritzler,E Spree 1997}) 9... h6 {[%emt 0:00:11]} 10. Bxf6 {[%emt 0:00:23]} Nxf6 {[%emt 0:00:22]} 11. Nd2 {[%emt 0:00:25]} b5 {[%emt 0:00:26]} 12. a3 {[%emt 0:01:18]} a5 {[%emt 0:00:10]} 13. O-O {[%emt 0:00:13]} a4 {[%emt 0:00:14]} 14. Qc2 {[%emt 0:01:04]} O-O {[%emt 0:00:14]} 15. Qd3 {[%emt 0:04:24]} Qc7 {[%emt 0:02:41]} 16. Bd1 {[%emt 0:02:17]} e5 {[%emt 0:01:12]} 17. dxe5 {[%emt 0:00:54]} Bxe5 {[%emt 0:00:09]} 18. Bc2 {[%emt 0:06:39]} Rfe8 {[%emt 0:01:21]} 19. Rfe1 {[%emt 0:04:10]} Re6 {[%emt 0:01:15]} 20. Rac1 {[%emt 0:02:18]} Rae8 {[%emt 0:00:17]} 21. Kh1 {[%emt 0:02:42]} Bd6 {[%emt 0:01:40]} 22. Kg1 {[%emt 0:04:31]} Qb6 {[%emt 0:01:10]} 23. Nf3 {[%emt 0:04:04]} c5 {[%emt 0:01:45]} 24. Kh1 {[%emt 0:01:24]} g6 {[%emt 0:00:53]} 25. Kg1 {[%emt 0:02:36]} c4 {[%emt 0:01:21]} 26. Qd4 {[%emt 0:01:36]} Bc5 {[%emt 0:00:20]} 27. Qd2 {[%emt 0:06:59]} Kg7 {[%emt 0:02:11]} 28. Bb1 {[%emt 0:01:46]} Ne4 {[%emt 0:01:28]} 29. Bxe4 {[%emt 0:05:09]} dxe4 {[%emt 0:01:26]} 30. Nd4 {[%emt 0:00:40]} Bxd4 {[%emt 0:00:32]} 31. cxd4 {[%emt 0:05:47]} f5 {[%emt 0:01:49]} 32. Red1 {[%emt 0:01:12]} g5 {[%emt 0:00:39]} 33. Qc3 {[%emt 0:02:28]} Kg6 {[%emt 0:01:07]} 34. Rc2 {[%emt 0:01:48]} Qd6 {[%emt 0:00:33]} 35. Qe1 {[%emt 0:03:43]} f4 {[%emt 0:00:52]} (35... Qd5 $17) 36. Qe2 {[%emt 0:03:11]} (36. exf4 $11 gxf4 37. Qa5) 36... Rf6 {[%emt 0:00:32]} 37. Qd2 {[%emt 0:06:58]} Qd7 {[%emt 0:00:39]} 38. exf4 {[%emt 0:05:21]} gxf4 {[%emt 0:01:46]} 39. Qe2 {[%emt 0:05:13]} (39. d5 $17) 39... f3 {[%emt 0:00:44]} 40. Qe3 {[%emt 0:01:08]} fxg2 {[%emt 0:00:18]} 41. Qg3+ {[%emt 0:02:36]} Kh7 {[%emt 0:00:15]} 42. Rc3 {[%emt 0:00:35] [#]} Qf5 {[%emt 0:01:10]} (42... Ref8 $1 $19 43. Rd2 Rf3 44. Rxf3 exf3) 43. Re3 {[%emt 0:02:39]} Rg8 {[%emt 0:00:20]} (43... Rf7 $17 44. Qh4 h5) 44. Qh4 {[%emt 0:00:40]} Re6 {[%emt 0:03:28]} 45. Rde1 {[%emt 0:01:41]} Rge8 {[%emt 0:00:59] [#]} 46. Qg3 {[%emt 0:03:55]} (46. Qg4 $1 $11 {[%mdl 512]} Qg6 47. R1e2) 46... R8e7 {[%emt 0:02:01]} (46... Qf6 $17 47. d5 R6e7) 47. Qg4 {[%emt 0:00:39]} Qxg4 {[%emt 0:03:07]} 48. hxg4 {[%emt 0:00:02]} Kg6 {[%emt 0:01:05]} 49. f3 {[%emt 0:01:43]} Kg5 {[%emt 0:00:32]} (49... Rd6 $11) 50. Rxe4 {[%emt 0:01:21]} Rxe4 {[%emt 0:00:08]} 51. Rxe4 {[%emt 0:00:08]} Rxe4 {[%emt 0:00:04]} 52. fxe4 {[%emt 0:00:07]} b4 {[%emt 0:00:07]} 53. axb4 {[%emt 0:01:22]} c3 {[%emt 0:00:04]} 54. bxc3 {[%emt 0:00:14]} a3 {[%emt 0:00:05]} 55. d5 {[%emt 0:00:30]} a2 {[%emt 0:00:05]} 56. c4 {[%emt 0:00:22]} Kxg4 {[%emt 0:00:08]} 57. Kxg2 {[%emt 0:00:06]} a1=Q {[%emt 0:00:08]} 58. b5 {[%emt 0:00:10]} Qb2+ {[%emt 0:00:06]} 59. Kf1 {[%emt 0:00:05]} Kf3 {[%emt 0:00:04]} 0-1